fUSD/lending_fUSD_20260610
["ID","MTS","AMOUNT","RATE_DAILY","PERIOD"]
[424715816,1781084552000,-1792.0,0.00029863,60]
[424715815,1781084552000,-971.36885081,0.00029863,60]
[424715813,1781084552000,-1792.0,0.00029863,60]
[424715807,1781084552000,-1792.0,0.00029863,60]
[424715810,1781084552000,-500.0,0.00029863,60]
[424715811,1781084552000,-1792.0,0.00029863,60]
[424715809,1781084552000,-1792.0,0.00029863,60]
[424715808,1781084552000,-1792.0,0.00029863,60]
[424715806,1781084552000,-1792.0,0.00029863,60]
[424715805,1781084552000,-496.10210782,0.00029863,30]
[424715812,1781084552000,-500.0,0.00029863,60]
[424715821,1781084552000,-1792.0,0.00029863,60]
[424715820,1781084552000,-500.0,0.00029863,60]
[424715823,1781084552000,-1792.0,0.00029863,60]
[424715838,1781084552000,-500.0,0.00029863,60]
[424715837,1781084552000,-1792.0,0.00029863,60]
[424715836,1781084552000,-1792.0,0.00029863,60]
[424715835,1781084552000,-500.0,0.00029863,60]
[424715834,1781084552000,-1792.0,0.00029863,60]
[424715833,1781084552000,-500.0,0.00029863,60]
[424715832,1781084552000,-1792.0,0.00029863,60]
[424715822,1781084552000,-500.0,0.00029863,60]
[424715830,1781084552000,-1792.0,0.00029863,60]
[424715827,1781084552000,-150.0,0.00029863,60]
[424715829,1781084552000,-500.0,0.00029863,60]
[424715828,1781084552000,-1792.0,0.00029863,60]
[424715826,1781084552000,-500.0,0.00029863,60]
[424715825,1781084552000,-1792.0,0.00029863,60]
[424715824,1781084552000,-500.0,0.00029863,60]
[424715831,1781084552000,-500.0,0.00029863,60]
[424715852,1781084553000,-150.0,0.00029863,60]
[424715853,1781084553000,-150.0,0.00029863,60]
[424715851,1781084553000,-1808.77892418,0.00029863,60]
[424715850,1781084553000,-1792.0,0.00029863,60]
[424715849,1781084553000,-1792.0,0.00029863,60]
[424715847,1781084553000,-1792.0,0.00029863,60]
[424715848,1781084553000,-1792.0,0.00029863,60]
[424715843,1781084553000,-461.44101559,0.00029863,60]
[424715845,1781084553000,-500.0,0.00029863,60]
[424715844,1781084553000,-1792.0,0.00029863,60]
[424715842,1781084553000,-324.13656241,0.00029863,60]
[424715841,1781084553000,-1792.0,0.00029863,60]
[424715839,1781084553000,-500.0,0.00029863,60]
[424715854,1781084553000,-500.0,0.00029863,60]
[424715846,1781084553000,-521.2725147,0.00029863,60]
[424715840,1781084553000,-500.0,0.00029863,60]
[424715855,1781084553000,-150.0,0.00029863,60]
[424715858,1781084553000,-500.0,0.00029863,60]
[424715856,1781084553000,-253.61827038,0.00029863,60]
[424715871,1781084553000,-500.0,0.00029863,60]
[424715872,1781084553000,-1674.0,0.00029863,60]
[424715870,1781084553000,-500.0,0.00029863,60]
[424715868,1781084553000,-500.0,0.00029863,60]
[424715867,1781084553000,-1674.0,0.00029863,60]
[424715865,1781084553000,-500.0,0.00029863,60]
[424715869,1781084553000,-1674.0,0.00029863,60]
[424715864,1781084553000,-500.0,0.00029863,60]
[424715863,1781084553000,-500.0,0.00029863,60]
[424715862,1781084553000,-500.0,0.00029863,60]
[424715861,1781084553000,-500.0,0.00029863,60]
[424715859,1781084553000,-500.0,0.00029863,60]
[424715860,1781084553000,-500.0,0.00029863,60]
[424715857,1781084553000,-500.0,0.00029863,60]
[424715866,1781084553000,-187.04855715,0.00029863,60]
[424715880,1781084554000,-150.0,0.00029863,60]
[424715887,1781084554000,-500.0,0.00029863,60]
[424715886,1781084554000,-1674.0,0.00029863,60]
[424715885,1781084554000,-220.36972287,0.00029863,60]
[424715883,1781084554000,-150.0,0.00029863,60]
[424715882,1781084554000,-1674.0,0.00029863,60]
[424715881,1781084554000,-500.0,0.00029863,60]
[424715889,1781084554000,-1674.0,0.00029863,60]
[424715879,1781084554000,-1674.0,0.00029863,60]
[424715877,1781084554000,-150.0,0.00029863,60]
[424715876,1781084554000,-1674.0,0.00029863,60]
[424715875,1781084554000,-500.0,0.00029863,60]
[424715874,1781084554000,-1674.0,0.00029863,60]
[424715873,1781084554000,-500.0,0.00029863,60]
[424715878,1781084554000,-500.0,0.00029863,60]
[424715888,1781084554000,-500.0,0.00029863,60]
[424715884,1781084554000,-500.0,0.00029863,60]
[424715890,1781084554000,-500.0,0.00029863,60]
[424715907,1781084554000,-1674.0,0.00029863,60]
[424715905,1781084554000,-1674.0,0.00029863,60]
[424715904,1781084554000,-1674.0,0.00029863,60]
[424715903,1781084554000,-1674.0,0.00029863,60]
[424715902,1781084554000,-1674.0,0.00029863,60]
[424715901,1781084554000,-248.0,0.00029863,60]
[424715900,1781084554000,-1674.0,0.00029863,60]
[424715899,1781084554000,-500.0,0.00029863,60]
[424715891,1781084554000,-1674.0,0.00029863,60]
[424715897,1781084554000,-1674.0,0.00029863,60]
[424715895,1781084554000,-1674.0,0.00029863,60]
[424715906,1781084554000,-1674.0,0.00029863,60]
[424715896,1781084554000,-1674.0,0.00029863,60]
[424715894,1781084554000,-500.0,0.00029863,60]
[424715892,1781084554000,-1674.0,0.00029863,60]
[424715893,1781084554000,-500.0,0.00029863,60]
[424715898,1781084554000,-500.0,0.00029863,60]
[424715916,1781084555000,-39157.93255258,0.0003,7]
[424715917,1781084555000,-78482.70340811,0.0003,7]
[424715913,1781084555000,-500.0,0.00029863,60]
[424715914,1781084555000,-340.28549178,0.00029863,60]
[424715911,1781084555000,-500.0,0.00029863,60]
[424715910,1781084555000,-1685.15040193,0.00029863,60]
[424715918,1781084555000,-117640.63596069,0.0003,7]
[424715909,1781084555000,-1674.0,0.00029863,60]
[424715908,1781084555000,-1674.0,0.00029863,60]
[424715912,1781084555000,-500.0,0.00029863,60]
[424715919,1781084555000,-369.24803815,0.0003,30]
[424715915,1781084555000,-194.81124461,0.00029985,5]
[424715921,1781084555000,-8784.42707679,0.0003,30]
[424715922,1781084555000,-160.0,0.0003,30]
[424715924,1781084555000,-284.95203121,0.0003,30]
[424715923,1781084555000,-1073.28,0.0003,30]
[424715925,1781084555000,-2317.02,0.0003,7]
[424715926,1781084555000,-2317.02,0.0003,7]
[424715928,1781084555000,-2317.02,0.0003,7]
[424715927,1781084555000,-2317.02,0.0003,7]
[424715929,1781084555000,-2317.06,0.0003,7]
[424715930,1781084555000,-284.95203121,0.0003,7]
[424715931,1781084555000,-39157.93255258,0.00030033,7]
[424715932,1781084555000,-78482.70340811,0.00030033,7]
[424715933,1781084555000,-74695.9409256,0.00030033,7]
[424715920,1781084555000,-1109.50226619,0.0003,7]
[424715934,1781084614000,3000.0,0.00030077,120]
[424715935,1781084615000,3000.0,0.00030077,120]
[424715936,1781084615000,3000.0,0.00030077,120]
[424715939,1781084616000,3000.0,0.00030077,120]
[424715938,1781084616000,3000.0,0.00030077,120]
[424715937,1781084616000,3000.0,0.00030077,120]
[424715942,1781084617000,3000.0,0.00030077,120]
[424715941,1781084617000,3000.0,0.00030077,120]
[424715940,1781084617000,3000.0,0.00030077,120]
[424715946,1781084618000,3000.0,0.00030077,120]
[424715945,1781084618000,3000.0,0.00030077,120]
[424715944,1781084618000,3000.0,0.00030077,120]
[424715943,1781084618000,3000.0,0.00030077,120]
[424715949,1781084619000,3000.0,0.00030077,120]
[424715948,1781084619000,3000.0,0.00030077,120]
[424715947,1781084619000,3000.0,0.00030077,120]
[424715950,1781084620000,1640.44,0.00030077,120]
[424715951,1781084668000,309.25,0.00030082,120]
[424715952,1781084703000,194.0,0.0002893,120]
[424715953,1781084739000,221.10554265,7.937e-05,7]
[424715970,1781085031000,-160.0,8.193e-05,2]
[424715969,1781085031000,-150.0,8.136e-05,2]
[424715968,1781085031000,-0.00213687,8.057e-05,2]
[424715966,1781085031000,-214.24,7.703e-05,2]
[424715967,1781085031000,-149.99786313,8.057e-05,2]
[424716008,1781085032000,-1534.04,0.00010475,2]
[424716007,1781085032000,-9999.99,0.00010475,2]
[424716006,1781085032000,-2136.11,0.00010475,2]
[424716005,1781085032000,-5734.03,0.00010475,2]
[424716002,1781085032000,-500.0,0.00010192,2]
[424716003,1781085032000,-511.4,0.00010278,2]
[424716001,1781085032000,-171.57,0.00010145,2]
[424716010,1781085032000,-2000.0,0.00010501,2]
[424715998,1781085032000,-385.96,9.816e-05,2]
[424716004,1781085032000,-357.53323382,0.00010417,2]
[424716011,1781085032000,-28110.0909,0.00010501,2]
[424716014,1781085032000,-511.4,0.00010529,2]
[424716012,1781085032000,-546.4280875,0.00010501,2]
[424716000,1781085032000,-511.4,0.00010027,2]
[424716016,1781085032000,-151.0,0.00010598,2]
[424716013,1781085032000,-1295.6864125,0.00010501,2]
[424716015,1781085032000,-151.0,0.00010598,2]
[424716017,1781085032000,-151.0,0.00010598,2]
[424716019,1781085032000,-208.47876553,0.000106,3]
[424716018,1781085032000,-161.96,0.00010598,2]
[424716020,1781085032000,-255.82010105,0.00010601,2]
[424716021,1781085032000,-255.0,0.00010635,2]
[424716027,1781085032000,-293.36566713,0.00010803,2]
[424716009,1781085032000,-2135.61,0.00010475,2]
[424715999,1781085032000,-161.96,9.841e-05,2]
[424715991,1781085032000,-150.99,9.67e-05,2]
[424715997,1781085032000,-754.88306864,9.801e-05,2]
[424715974,1781085032000,-504.41335218,8.473e-05,2]
[424715971,1781085032000,-150.0,8.216e-05,2]
[424715972,1781085032000,-282.0,8.296e-05,2]
[424715973,1781085032000,-150.0,8.403e-05,2]
[424715975,1781085032000,-693.29,8.473e-05,2]
[424715976,1781085032000,-498.89387459,8.473e-05,2]
[424715978,1781085032000,-300.3291256,8.473e-05,2]
[424715977,1781085032000,-2303.40277323,8.473e-05,2]
[424715983,1781085032000,-308.85698785,8.884e-05,2]
[424715979,1781085032000,-250.0,8.473e-05,2]
[424715981,1781085032000,-215.92376884,8.574e-05,2]
[424715995,1781085032000,-1359.16,9.706e-05,2]
[424715980,1781085032000,-606.02860646,8.473e-05,2]
[424715985,1781085032000,-504.47,9.392e-05,2]
[424715984,1781085032000,-161.96,9.084e-05,2]
[424715986,1781085032000,-163.57,9.502e-05,2]
[424716024,1781085032000,-152.0,0.00010694,2]
[424715993,1781085032000,-3560.78,9.673e-05,2]
[424715990,1781085032000,-150.0,9.669e-05,2]
[424715987,1781085032000,-2576.12,9.633e-05,2]
[424715994,1781085032000,-625.2048155,9.701e-05,2]
[424715992,1781085032000,-299.99,9.67e-05,2]
[424715989,1781085032000,-681.4,9.649e-05,2]
[424715996,1781085032000,-701.03936689,9.801e-05,2]
[424715982,1781085032000,-675.39680665,8.87e-05,2]
[424716025,1781085032000,-282.53942145,0.00010706,2]
[424715988,1781085032000,-431.22,9.643e-05,2]
[424716022,1781085032000,-968.58016343,0.0001066,2]
[424716059,1781085032000,-1359.16,0.00010919,2]
[424716054,1781085032000,-151.0,0.0001084,2]
[424716057,1781085032000,-151.0,0.00010897,2]
[424716056,1781085032000,-431.22,0.00010849,2]
[424716055,1781085032000,-151.0,0.0001084,2]
[424716060,1781085032000,-154.79,0.00010922,2]
[424716061,1781085032000,-375.0,0.00010929,2]
[424716063,1781085032000,-453.0,0.00010958,2]
[424716062,1781085032000,-198.96223939,0.00010949,2]
[424716064,1781085032000,-200.0,0.00010959,2]
[424716066,1781085032000,-200.0,0.00010959,2]
[424716058,1781085032000,-151.0,0.00010907,2]
[424716067,1781085032000,-200.0,0.00010959,2]
[424716070,1781085032000,-151.0,0.00010959,2]
[424716071,1781085032000,-151.0,0.00010959,2]
[424716069,1781085032000,-166.66,0.00010959,2]
[424716072,1781085032000,-151.0,0.00010959,2]
[424716074,1781085032000,-500.0,0.00010965,2]
[424716073,1781085032000,-150.0,0.00010959,2]
[424716077,1781085032000,-151.0,0.00010965,2]
[424716075,1781085032000,-151.0,0.00010965,2]
[424716076,1781085032000,-187.354788,0.00010965,2]
[424716078,1781085032000,-152.0,0.00010967,2]
[424716023,1781085032000,-500.0,0.00010691,2]
[424716068,1781085032000,-200.0,0.00010959,2]
[424716053,1781085032000,-151.0,0.0001084,2]
[424716065,1781085032000,-200.0,0.00010959,2]
[424716050,1781085032000,-151.0,0.0001084,2]
[424716026,1781085032000,-511.4,0.00010779,2]
[424716051,1781085032000,-151.0,0.0001084,2]
[424716029,1781085032000,-151.0,0.00010806,2]
[424716028,1781085032000,-151.0,0.00010806,2]
[424716030,1781085032000,-151.0,0.00010806,2]
[424716031,1781085032000,-151.0,0.00010806,2]
[424716032,1781085032000,-152.0,0.00010806,2]
[424716034,1781085032000,-152.0,0.00010806,2]
[424716033,1781085032000,-152.0,0.00010806,2]
[424716036,1781085032000,-152.0,0.00010806,2]
[424716035,1781085032000,-152.0,0.00010806,2]
[424716039,1781085032000,-151.0,0.00010806,2]
[424716037,1781085032000,-151.0,0.00010806,2]
[424716040,1781085032000,-151.0,0.00010806,2]
[424716052,1781085032000,-151.0,0.0001084,2]
[424716038,1781085032000,-151.0,0.00010806,2]
[424716045,1781085032000,-151.0,0.0001084,2]
[424716048,1781085032000,-151.0,0.0001084,2]
[424716046,1781085032000,-151.0,0.0001084,2]
[424716049,1781085032000,-151.0,0.0001084,2]
[424716047,1781085032000,-151.0,0.0001084,2]
[424716043,1781085032000,-2000.0,0.00010821,2]
[424716042,1781085032000,-151.0,0.00010806,2]
[424716041,1781085032000,-151.0,0.00010806,2]
[424716044,1781085032000,-151.0,0.00010837,2]
[424716117,1781085033000,-151.0,0.00011099,2]
[424716110,1781085033000,-375.0,0.00011081,2]
[424716111,1781085033000,-375.0,0.00011081,2]
[424716109,1781085033000,-375.0,0.00011076,2]
[424716113,1781085033000,-375.0,0.00011092,2]
[424716112,1781085033000,-375.0,0.00011086,2]
[424716114,1781085033000,-151.0,0.00011093,2]
[424716115,1781085033000,-1503.07883313,0.00011099,2]
[424716108,1781085033000,-375.0,0.00011073,2]
[424716118,1781085033000,-151.0,0.00011099,2]
[424716116,1781085033000,-375.0,0.00011099,2]
[424716120,1781085033000,-375.0,0.00011103,2]
[424716131,1781085033000,-329.0,0.00011121,2]
[424716121,1781085033000,-2500.0,0.00011105,2]
[424716122,1781085033000,-375.0,0.00011106,2]
[424716124,1781085033000,-167.71986107,0.00011107,2]
[424716123,1781085033000,-152.0,0.00011107,2]
[424716126,1781085033000,-159.50863795,0.00011107,2]
[424716125,1781085033000,-151.0,0.00011107,2]
[424716127,1781085033000,-375.0,0.00011108,2]
[424716128,1781085033000,-375.0,0.00011114,2]
[424716129,1781085033000,-375.0,0.00011115,2]
[424716130,1781085033000,-375.0,0.00011118,2]
[424716105,1781085033000,-511.4,0.0001103,2]
[424716119,1781085033000,-151.0,0.00011099,2]
[424716107,1781085033000,-163.57,0.0001107,2]
[424716079,1781085033000,-152.0,0.00010967,2]
[424716101,1781085033000,-151.13,0.00011,2]
[424716081,1781085033000,-151.0,0.00010967,2]
[424716132,1781085033000,-166.66,0.00011124,2]
[424716082,1781085033000,-151.0,0.00010967,2]
[424716080,1781085033000,-152.0,0.00010967,2]
[424716084,1781085033000,-375.0,0.00010969,2]
[424716083,1781085033000,-151.0,0.00010967,2]
[424716085,1781085033000,-250.0,0.00010969,2]
[424716087,1781085033000,-282.27,0.00010989,2]
[424716091,1781085033000,-229.51,0.00010989,2]
[424716088,1781085033000,-223.51,0.00010989,2]
[424716089,1781085033000,-1192.11,0.00010989,2]
[424716090,1781085033000,-564.04,0.00010989,2]
[424716092,1781085033000,-653.87,0.00010989,2]
[424716086,1781085033000,-1010.7,0.00010989,2]
[424716093,1781085033000,-2000.0,0.00010989,2]
[424716095,1781085033000,-630.94,0.00010989,2]
[424716094,1781085033000,-204.74,0.00010989,2]
[424716096,1781085033000,-375.0,0.00010989,2]
[424716098,1781085033000,-500.64,0.00011,2]
[424716099,1781085033000,-1487.0,0.00011,2]
[424716097,1781085033000,-151.0,0.00010996,2]
[424716104,1781085033000,-375.0,0.00011029,2]
[424716100,1781085033000,-591.85,0.00011,2]
[424716102,1781085033000,-274.0,0.00011007,2]
[424716103,1781085033000,-375.0,0.0001102,2]
[424716106,1781085033000,-166.66,0.00011068,2]
[424716134,1781085033000,-375.0,0.00011138,2]
[424716141,1781085033000,-7964.0,0.00011162,5]
[424716136,1781085033000,-202.85910125,0.00011141,2]
[424716170,1781085033000,-375.0,0.00011223,2]
[424716165,1781085033000,-375.0,0.00011217,2]
[424716168,1781085033000,-749.17,0.0001122,2]
[424716169,1781085033000,-166.17,0.0001122,2]
[424716167,1781085033000,-267.23,0.0001122,2]
[424716171,1781085033000,-375.0,0.00011243,2]
[424716172,1781085033000,-163.3,0.00011248,2]
[424716173,1781085033000,-375.0,0.00011249,2]
[424716175,1781085033000,-375.0,0.00011254,2]
[424716174,1781085033000,-151.0,0.00011251,2]
[424716176,1781085033000,-375.0,0.00011261,2]
[424716178,1781085033000,-375.0,0.00011268,2]
[424716179,1781085033000,-422.0,0.00011272,2]
[424716133,1781085033000,-434.0,0.00011124,2]
[424716181,1781085033000,-151.0,0.0001128,2]
[424716182,1781085033000,-151.0,0.0001128,2]
[424716183,1781085033000,-166.66,0.00011288,2]
[424716180,1781085033000,-151.0,0.0001128,2]
[424716184,1781085033000,-375.0,0.00011289,2]
[424716187,1781085033000,-375.0,0.00011311,2]
[424716186,1781085033000,-319.84226118,0.00011301,2]
[424716185,1781085033000,-375.0,0.00011291,2]
[424716188,1781085033000,-375.0,0.00011314,2]
[424716190,1781085033000,-375.0,0.00011335,2]
[424716189,1781085033000,-375.0,0.00011327,2]
[424716166,1781085033000,-375.0,0.00011218,2]
[424716164,1781085033000,-375.0,0.00011214,2]
[424716177,1781085033000,-375.0,0.00011264,2]
[424716161,1781085033000,-375.0,0.00011207,2]
[424716163,1781085033000,-375.0,0.00011214,2]
[424716137,1781085033000,-375.0,0.00011142,2]
[424716135,1781085033000,-358.13203091,0.00011141,2]
[424716138,1781085033000,-284.95203121,0.0001115,2]
[424716139,1781085033000,-375.0,0.00011155,2]
[424716140,1781085033000,-375.0,0.00011158,2]
[424716142,1781085033000,-375.0,0.00011162,2]
[424716147,1781085033000,-375.0,0.00011186,2]
[424716145,1781085033000,-166.66,0.00011178,2]
[424716144,1781085033000,-434.0,0.00011175,2]
[424716143,1781085033000,-375.0,0.00011162,2]
[424716146,1781085033000,-375.0,0.0001118,2]
[424716148,1781085033000,-375.0,0.00011187,2]
[424716150,1781085033000,-375.0,0.00011193,2]
[424716162,1781085033000,-375.0,0.00011208,2]
[424716149,1781085033000,-375.0,0.00011191,2]
[424716160,1781085033000,-5790.68693904,0.00011205,2]
[424716155,1781085033000,-666.0,0.00011204,2]
[424716159,1781085033000,-41574.71570871,0.00011205,2]
[424716156,1781085033000,-300.0,0.00011204,2]
[424716158,1781085033000,-666.0,0.00011204,2]
[424716157,1781085033000,-300.0,0.00011204,2]
[424716154,1781085033000,-375.0,0.00011201,2]
[424716151,1781085033000,-434.0,0.000112,2]
[424716153,1781085033000,-316.0,0.000112,2]
[424716152,1781085033000,-1000.0,0.000112,2]
[424716210,1781085034000,-500.0,0.000116,2]
[424716211,1781085034000,-500.0,0.000116,2]
[424716214,1781085034000,-500.0,0.000116,2]
[424716217,1781085034000,-500.0,0.000116,2]
[424716209,1781085034000,-500.0,0.000116,2]
[424716215,1781085034000,-500.0,0.000116,2]
[424716220,1781085034000,-500.0,0.000116,2]
[424716213,1781085034000,-500.0,0.000116,2]
[424716216,1781085034000,-500.0,0.000116,2]
[424716218,1781085034000,-500.0,0.000116,2]
[424716219,1781085034000,-500.0,0.000116,2]
[424716207,1781085034000,-500.0,0.000116,2]
[424716212,1781085034000,-500.0,0.000116,2]
[424716208,1781085034000,-500.0,0.000116,2]
[424716195,1781085034000,-161.96,0.00011355,2]
[424716204,1781085034000,-166.66,0.00011507,2]
[424716202,1781085034000,-300.0,0.0001146,2]
[424716206,1781085034000,-500.0,0.000116,2]
[424716205,1781085034000,-500.0,0.000116,2]
[424716203,1781085034000,-166.66,0.00011491,2]
[424716199,1781085034000,-166.66,0.00011397,2]
[424716200,1781085034000,-258.42519712,0.000114,2]
[424716197,1781085034000,-12841.33775586,0.00011375,2]
[424716198,1781085034000,-151.0,0.00011397,2]
[424716196,1781085034000,-666.0,0.00011374,2]
[424716194,1781085034000,-434.0,0.0001135,2]
[424716192,1781085034000,-375.0,0.00011347,2]
[424716193,1781085034000,-422.0,0.00011349,2]
[424716191,1781085034000,-375.0,0.00011337,2]
[424716201,1781085034000,-434.0,0.00011439,2]
[424716221,1781085034000,-500.0,0.000116,2]
[424716224,1781085034000,-500.0,0.000116,2]
[424716228,1781085034000,-500.0,0.000116,2]
[424716222,1781085034000,-500.0,0.000116,2]
[424716252,1781085034000,-500.0,0.000116,2]
[424716253,1781085034000,-27.48841211,0.000116,2]
[424716251,1781085034000,-500.0,0.000116,2]
[424716250,1781085034000,-226.92967466,0.000116,2]
[424716249,1781085034000,-273.07032534,0.000116,2]
[424716247,1781085034000,-500.0,0.000116,2]
[424716248,1781085034000,-500.0,0.000116,2]
[424716245,1781085034000,-500.0,0.000116,2]
[424716244,1781085034000,-500.0,0.000116,2]
[424716243,1781085034000,-500.0,0.000116,2]
[424716242,1781085034000,-500.0,0.000116,2]
[424716241,1781085034000,-500.0,0.000116,2]
[424716240,1781085034000,-500.0,0.000116,2]
[424716246,1781085034000,-500.0,0.000116,2]
[424716237,1781085034000,-500.0,0.000116,2]
[424716238,1781085034000,-500.0,0.000116,2]
[424716227,1781085034000,-500.0,0.000116,2]
[424716223,1781085034000,-500.0,0.000116,2]
[424716226,1781085034000,-500.0,0.000116,2]
[424716229,1781085034000,-2551.85677581,0.000116,2]
[424716230,1781085034000,-500.0,0.000116,2]
[424716231,1781085034000,-500.0,0.000116,2]
[424716232,1781085034000,-500.0,0.000116,2]
[424716233,1781085034000,-500.0,0.000116,2]
[424716235,1781085034000,-500.0,0.000116,2]
[424716234,1781085034000,-500.0,0.000116,2]
[424716239,1781085034000,-500.0,0.000116,2]
[424716236,1781085034000,-500.0,0.000116,2]
[424716225,1781085034000,-500.0,0.000116,2]
[424716273,1781085037000,-500.0,0.000116,2]
[424716268,1781085037000,-151.0,0.00011155,2]
[424716270,1781085037000,-500.0,0.000116,2]
[424716271,1781085037000,-500.0,0.000116,2]
[424716269,1781085037000,-472.51158789,0.000116,2]
[424716272,1781085037000,-500.0,0.000116,2]
[424716274,1781085037000,-500.0,0.000116,2]
[424716281,1781085037000,-344.70908144,0.000116,2]
[424716276,1781085037000,-406.99449209,0.000116,2]
[424716278,1781085037000,-313.78574593,0.000116,2]
[424716277,1781085037000,-500.0,0.000116,2]
[424716279,1781085037000,-186.21425407,0.000116,2]
[424716280,1781085037000,-155.29091856,0.000116,2]
[424716282,1781085037000,-500.0,0.000116,2]
[424716275,1781085037000,-93.00550791,0.000116,2]
[424716283,1781085038000,-500.0,0.000116,2]
[424716284,1781085038000,-500.0,0.000116,2]
[424716287,1781085038000,-500.0,0.000116,2]
[424716288,1781085038000,-500.0,0.000116,2]
[424716285,1781085038000,-298.05091856,0.000116,2]
[424716289,1781085038000,-112.75346755,0.000116,2]
[424716286,1781085038000,-201.94908144,0.000116,2]
[424716360,1781085040000,-433.0,0.00011699,2]
[424716333,1781085040000,-500.0,0.000116,2]
[424716335,1781085040000,-500.0,0.000116,2]
[424716337,1781085040000,-500.0,0.000116,2]
[424716340,1781085040000,-500.0,0.000116,2]
[424716339,1781085040000,-500.0,0.000116,2]
[424716338,1781085040000,-500.0,0.000116,2]
[424716341,1781085040000,-500.0,0.000116,2]
[424716343,1781085040000,-500.0,0.000116,2]
[424716345,1781085040000,-500.0,0.000116,2]
[424716346,1781085040000,-500.0,0.000116,2]
[424716344,1781085040000,-500.0,0.000116,2]
[424716348,1781085040000,-500.0,0.000116,2]
[424716347,1781085040000,-500.0,0.000116,2]
[424716349,1781085040000,-500.0,0.000116,2]
[424716350,1781085040000,-500.0,0.000116,2]
[424716352,1781085040000,-2528.67333232,0.000116,2]
[424716351,1781085040000,-619.0,0.000116,2]
[424716353,1781085040000,-260.11424283,0.000116,2]
[424716355,1781085040000,-546.0,0.00011616,2]
[424716342,1781085040000,-500.0,0.000116,2]
[424716334,1781085040000,-500.0,0.000116,2]
[424716331,1781085040000,-500.0,0.000116,2]
[424716332,1781085040000,-500.0,0.000116,2]
[424716312,1781085040000,-500.0,0.000116,2]
[424716313,1781085040000,-500.0,0.000116,2]
[424716311,1781085040000,-387.24653245,0.000116,2]
[424716316,1781085040000,-399.95778049,0.000116,2]
[424716315,1781085040000,-500.0,0.000116,2]
[424716314,1781085040000,-500.0,0.000116,2]
[424716317,1781085040000,-100.04221951,0.000116,2]
[424716319,1781085040000,-500.0,0.000116,2]
[424716318,1781085040000,-500.0,0.000116,2]
[424716336,1781085040000,-500.0,0.000116,2]
[424716320,1781085040000,-500.0,0.000116,2]
[424716322,1781085040000,-92.64067661,0.000116,2]
[424716323,1781085040000,-500.0,0.000116,2]
[424716325,1781085040000,-500.0,0.000116,2]
[424716324,1781085040000,-500.0,0.000116,2]
[424716327,1781085040000,-500.0,0.000116,2]
[424716329,1781085040000,-500.0,0.000116,2]
[424716328,1781085040000,-500.0,0.000116,2]
[424716326,1781085040000,-500.0,0.000116,2]
[424716330,1781085040000,-500.0,0.000116,2]
[424716321,1781085040000,-407.35932339,0.000116,2]